[Event "*** Titled Tuesday Blitz"]
[Site "Chess.com"]
[Date "2021.04.27"]
[Round "10"]
[White "sorrm8thatscheckm8"]
[Black "VladDobrov"]
[Result "0-1"]
[WhiteElo "2563"]
[BlackElo "2723"]
[TimeControl "180+1"]
[EndTime "11:55:43 PDT"]
[Termination "VladDobrov won by resignation"]

1. d4 {[%clk 0:02:54.1]} 1... h5 {[%clk 0:02:35.5]} 2. c4 {[%clk 0:02:54.3]}
2... h4 {[%clk 0:02:14]} 3. Nc3 {[%clk 0:02:55.2]} 3... c6 {[%clk 0:02:06.9]} 4.
e4 {[%clk 0:02:55]} 4... d6 {[%clk 0:02:04.6]} 5. Nf3 {[%clk 0:02:52.4]} 5... h3
{[%clk 0:02:04.1]} 6. gxh3 {[%clk 0:02:52.1]} 6... Bxh3 {[%clk 0:02:03.5]} 7.
Bxh3 {[%clk 0:02:53]} 7... Rxh3 {[%clk 0:02:02.9]} 8. Ng5 {[%clk 0:02:51.9]}
8... Rh8 {[%clk 0:01:51.1]} 9. Qf3 {[%clk 0:02:51.7]} 9... Nh6 {[%clk
0:01:50.6]} 10. Be3 {[%clk 0:02:45.8]} 10... Qa5 {[%clk 0:01:47.7]} 11. O-O-O
{[%clk 0:02:42]} 11... Nd7 {[%clk 0:01:44.8]} 12. Kb1 {[%clk 0:02:37.7]} 12...
Rc8 {[%clk 0:01:28.6]} 13. h4 {[%clk 0:02:35.7]} 13... a6 {[%clk 0:01:24.7]} 14.
Rc1 {[%clk 0:02:13.8]} 14... e6 {[%clk 0:01:04.4]} 15. h5 {[%clk 0:02:08.9]}
15... Be7 {[%clk 0:01:01.6]} 16. Rhg1 {[%clk 0:02:03.5]} 16... b5 {[%clk
0:00:51.3]} 17. cxb5 {[%clk 0:01:40.7]} 17... axb5 {[%clk 0:00:49.5]} 18. Qh3
{[%clk 0:01:28.7]} 18... b4 {[%clk 0:00:45.3]} 19. Nxe6 {[%clk 0:01:24]} 19...
bxc3 {[%clk 0:00:24]} 20. Nxg7+ {[%clk 0:01:22.5]} 20... Kd8 {[%clk 0:00:24.2]}
21. Rxc3 {[%clk 0:01:19.1]} 21... Rb8 {[%clk 0:00:20.1]} 22. Rxc6 {[%clk
0:01:10.3]} 22... Rxb2+ {[%clk 0:00:19.7]} 23. Kxb2 {[%clk 0:01:04.4]} 23...
Qb5+ {[%clk 0:00:20]} 24. Ka1 {[%clk 0:01:01.2]} 24... Qxc6 {[%clk 0:00:20.9]}
25. Bxh6 {[%clk 0:00:57.9]} 25... Rxh6 {[%clk 0:00:16.8]} 26. Nf5 {[%clk
0:00:57.7]} 26... Bf6 {[%clk 0:00:16.3]} 27. f4 {[%clk 0:00:52.5]} 27... Qxe4
{[%clk 0:00:15.3]} 28. Rg8+ {[%clk 0:00:50.7]} 28... Kc7 {[%clk 0:00:15.5]} 29.
Qc3+ {[%clk 0:00:42.8]} 29... Nc5 {[%clk 0:00:15.7]} 30. Qa5+ {[%clk 0:00:40.6]}
30... Kd7 {[%clk 0:00:10.1]} 31. Qb5+ {[%clk 0:00:38.1]} 31... Ke6 {[%clk
0:00:05.9]} 32. Re8+ {[%clk 0:00:37.2]} 32... Kxf5 {[%clk 0:00:06.3]} 33. Rxe4
{[%clk 0:00:36.4]} 33... Kxe4 {[%clk 0:00:06.9]} 34. Kb1 {[%clk 0:00:32.1]}
34... Bxd4 {[%clk 0:00:06.8]} 35. Qe2+ {[%clk 0:00:31]} 35... Kd5 {[%clk
0:00:06.9]} 36. Qg2+ {[%clk 0:00:29.9]} 36... Ne4 {[%clk 0:00:06.2]} 37. Qh3
{[%clk 0:00:26.8]} 37... Nf6 {[%clk 0:00:05.7]} 38. Qf3+ {[%clk 0:00:24.9]}
38... Kc5 {[%clk 0:00:05.9]} 39. Qa3+ {[%clk 0:00:24]} 39... Kd5 {[%clk
0:00:06.3]} 40. Qf3+ {[%clk 0:00:22.8]} 40... Ke6 {[%clk 0:00:06.7]} 41. Qe2+
{[%clk 0:00:21.8]} 41... Kd7 {[%clk 0:00:07.2]} 42. Qc4 {[%clk 0:00:20.6]} 42...
Bc5 {[%clk 0:00:06.2]} 43. Qxf7+ {[%clk 0:00:20.2]} 43... Kc6 {[%clk 0:00:06.9]}
44. Qf8 {[%clk 0:00:17.6]} 44... Rxh5 {[%clk 0:00:04.5]} 45. Qxf6 {[%clk
0:00:17.4]} 45... Rh1+ {[%clk 0:00:05.1]} 46. Kc2 {[%clk 0:00:17.5]} 46... Rh2+
{[%clk 0:00:06]} 47. Kb3 {[%clk 0:00:17.3]} 47... Rh3+ {[%clk 0:00:06.4]} 48.
Kc2 {[%clk 0:00:15.7]} 48... Ra3 {[%clk 0:00:06.9]} 49. Qb2 {[%clk 0:00:14.2]}
49... Kd5 {[%clk 0:00:07.4]} 50. Kd1 {[%clk 0:00:13.9]} 50... Rd3+ {[%clk
0:00:07.2]} 51. Ke2 {[%clk 0:00:13.5]} 51... Re3+ {[%clk 0:00:08.1]} 52. Kf1
{[%clk 0:00:12.9]} 52... Rf3+ {[%clk 0:00:08.4]} 53. Ke1 {[%clk 0:00:12.7]}
53... Rxf4 {[%clk 0:00:09.3]} 54. Qd2+ {[%clk 0:00:11.9]} 54... Rd4 {[%clk
0:00:09.1]} 55. Qg2+ {[%clk 0:00:12.1]} 55... Kc4 {[%clk 0:00:09.7]} 56. Qc2+
{[%clk 0:00:11.4]} 56... Kb4 {[%clk 0:00:10.2]} 57. Qb3+ {[%clk 0:00:11.5]}
57... Ka5 {[%clk 0:00:11.1]} 58. Kf1 {[%clk 0:00:10.8]} 58... Rb4 {[%clk
0:00:10.5]} 59. Qc3 {[%clk 0:00:10]} 59... Ka4 {[%clk 0:00:10.2]} 60. Qc2+
{[%clk 0:00:10]} 60... Ka3 {[%clk 0:00:09.9]} 61. Qd3+ {[%clk 0:00:08]} 61...
Kxa2 {[%clk 0:00:10]} 62. Qd5+ {[%clk 0:00:08.5]} 62... Kb2 {[%clk 0:00:09.9]}
63. Qd2+ {[%clk 0:00:08.4]} 63... Kb3 {[%clk 0:00:10.1]} 64. Qd3+ {[%clk
0:00:09.1]} 64... Ka2 {[%clk 0:00:09.7]} 65. Qd2+ {[%clk 0:00:09.4]} 65... Rb2
{[%clk 0:00:09.8]} 66. Qd5+ {[%clk 0:00:09.9]} 66... Ka3 {[%clk 0:00:10.3]} 67.
Qa8+ {[%clk 0:00:09.5]} 67... Kb3 {[%clk 0:00:10.4]} 68. Qb7+ {[%clk 0:00:09.9]}
68... Kc3 {[%clk 0:00:10.8]} 69. Qf3+ {[%clk 0:00:10.2]} 69... Kc4 {[%clk
0:00:10.7]} 70. Qe4+ {[%clk 0:00:10.6]} 70... Bd4 {[%clk 0:00:11.2]} 71. Qe6+
{[%clk 0:00:10.5]} 71... d5 {[%clk 0:00:11.1]} 72. Qc8+ {[%clk 0:00:11.1]} 72...
Bc5 {[%clk 0:00:11.4]} 73. Qg4+ {[%clk 0:00:09.6]} 73... d4 {[%clk 0:00:11.1]}
74. Qe6+ {[%clk 0:00:09.5]} 74... Kb4 {[%clk 0:00:10.2]} 75. Qe4 {[%clk
0:00:08.8]} 75... Rb3 {[%clk 0:00:08.9]} 76. Qb7+ {[%clk 0:00:08.7]} 76... Kc3
{[%clk 0:00:08.9]} 77. Qf3+ {[%clk 0:00:08.5]} 77... d3 {[%clk 0:00:08.8]} 78.
Qd5 {[%clk 0:00:08.9]} 78... Bd4 {[%clk 0:00:08.3]} 79. Qc6+ {[%clk 0:00:08.9]}
79... Kd2 {[%clk 0:00:08.4]} 80. Qg2+ {[%clk 0:00:08.8]} 80... Kc1 {[%clk
0:00:09]} 81. Qg5+ {[%clk 0:00:09]} 81... d2 {[%clk 0:00:09]} 82. Kg2 {[%clk
0:00:02.4]} 82... Rc3 {[%clk 0:00:07]} 83. Qf4 {[%clk 0:00:02.1]} 83... Be3
{[%clk 0:00:07.1]} 84. Qf1+ {[%clk 0:00:01.2]} 84... d1=Q {[%clk 0:00:06.9]} 0-1

[Event "*** Titled Tuesday Blitz"]
[Site "Chess.com"]
[Date "2021.04.27"]
[Round "10"]
[White "Andreikka"]
[Black "Anton_Demchenko"]
[Result "1/2-1/2"]
[WhiteElo "2890"]
[BlackElo "2936"]
[TimeControl "180+1"]
[EndTime "11:55:47 PDT"]
[Termination "Game drawn by repetition"]

1. e4 {[%clk 0:03:00.9]} 1... e5 {[%clk 0:02:59.7]} 2. Nf3 {[%clk 0:03:01.5]}
2... Nc6 {[%clk 0:03:00.1]} 3. Bb5 {[%clk 0:03:02.2]} 3... a6 {[%clk 0:03:00.4]}
4. Ba4 {[%clk 0:03:02.9]} 4... d6 {[%clk 0:03:01]} 5. c3 {[%clk 0:03:02]} 5...
Bd7 {[%clk 0:03:01.2]} 6. d4 {[%clk 0:03:02]} 6... g6 {[%clk 0:03:01.3]} 7. Bg5
{[%clk 0:03:01.4]} 7... Be7 {[%clk 0:03:00.1]} 8. Be3 {[%clk 0:02:58.2]} 8...
Nf6 {[%clk 0:03:00.2]} 9. Bc2 {[%clk 0:02:58.8]} 9... O-O {[%clk 0:03:00]} 10.
O-O {[%clk 0:02:56.8]} 10... Re8 {[%clk 0:03:00.3]} 11. h3 {[%clk 0:02:54.8]}
11... Bf8 {[%clk 0:02:59.7]} 12. Nbd2 {[%clk 0:02:55.4]} 12... a5 {[%clk
0:03:00.1]} 13. Re1 {[%clk 0:02:50.4]} 13... a4 {[%clk 0:03:00.1]} 14. a3 {[%clk
0:02:43.2]} 14... Bg7 {[%clk 0:02:54.5]} 15. Bd3 {[%clk 0:02:38.1]} 15... Na5
{[%clk 0:02:48.4]} 16. Qc2 {[%clk 0:02:38.5]} 16... Qc8 {[%clk 0:02:40.1]} 17.
Rad1 {[%clk 0:02:37.3]} 17... c5 {[%clk 0:02:36.8]} 18. dxc5 {[%clk 0:02:17]}
18... dxc5 {[%clk 0:02:37.7]} 19. Nc4 {[%clk 0:01:59.1]} 19... Nxc4 {[%clk
0:02:33.7]} 20. Bxc4 {[%clk 0:02:00]} 20... b5 {[%clk 0:02:33.3]} 21. Bd5 {[%clk
0:02:00.7]} 21... Nxd5 {[%clk 0:01:39.1]} 22. Rxd5 {[%clk 0:02:01.6]} 22... Bc6
{[%clk 0:01:39.6]} 23. Rdd1 {[%clk 0:01:00.3]} 23... Bf8 {[%clk 0:01:36.1]} 24.
Nh2 {[%clk 0:00:57.7]} 24... h5 {[%clk 0:01:31.6]} 25. f3 {[%clk 0:00:53.8]}
25... Qe6 {[%clk 0:01:29.7]} 26. Nf1 {[%clk 0:00:53.7]} 26... Rad8 {[%clk
0:01:24.3]} 27. Bg5 {[%clk 0:00:50.7]} 27... f6 {[%clk 0:01:23.7]} 28. Bc1
{[%clk 0:00:47.9]} 28... Qb3 {[%clk 0:01:20.6]} 29. Qe2 {[%clk 0:00:47]} 29...
b4 {[%clk 0:01:11.6]} 30. Rxd8 {[%clk 0:00:40]} 30... Rxd8 {[%clk 0:01:12.5]}
31. Qa6 {[%clk 0:00:39.5]} 31... Qe6 {[%clk 0:00:58.2]} 32. Ne3 {[%clk
0:00:33.4]} 32... bxc3 {[%clk 0:00:45.4]} 33. bxc3 {[%clk 0:00:34.3]} 33... c4
{[%clk 0:00:46]} 34. Nc2 {[%clk 0:00:19]} 34... Bc5+ {[%clk 0:00:44.3]} 35. Be3
{[%clk 0:00:18.1]} 35... Ra8 {[%clk 0:00:44.9]} 36. Qxa8+ {[%clk 0:00:17.2]}
36... Bxa8 {[%clk 0:00:45.7]} 37. Bxc5 {[%clk 0:00:18.1]} 37... f5 {[%clk
0:00:38.5]} 38. exf5 {[%clk 0:00:15.5]} 38... gxf5 {[%clk 0:00:38.5]} 39. Bd4
{[%clk 0:00:15.5]} 39... e4 {[%clk 0:00:38.4]} 40. f4 {[%clk 0:00:16]} 40... e3
{[%clk 0:00:34.3]} 41. Rxe3 {[%clk 0:00:14.4]} 41... Qg6 {[%clk 0:00:31.2]} 42.
Re2 {[%clk 0:00:14]} 42... Be4 {[%clk 0:00:29.6]} 43. Ne3 {[%clk 0:00:13.3]}
43... h4 {[%clk 0:00:26.8]} 44. Rb2 {[%clk 0:00:10.4]} 44... Qg3 {[%clk
0:00:24.5]} 45. Rf2 {[%clk 0:00:08.1]} 45... Kf7 {[%clk 0:00:23.6]} 46. Rf1
{[%clk 0:00:07.5]} 46... Bd3 {[%clk 0:00:23]} 47. Rf2 {[%clk 0:00:07.7]} 47...
Qg8 {[%clk 0:00:22.7]} 48. Rb2 {[%clk 0:00:07.2]} 48... Qg3 {[%clk 0:00:23]} 49.
Rf2 {[%clk 0:00:06.5]} 49... Ke6 {[%clk 0:00:22.8]} 50. Bc5 {[%clk 0:00:05.4]}
50... Kd7 {[%clk 0:00:22.1]} 51. Bd4 {[%clk 0:00:05.6]} 51... Kc6 {[%clk
0:00:22.6]} 52. Rb2 {[%clk 0:00:01.5]} 52... Qe1+ {[%clk 0:00:22.7]} 53. Kh2
{[%clk 0:00:02.4]} 53... Qc1 {[%clk 0:00:22.7]} 54. Rb6+ {[%clk 0:00:02.1]}
54... Kd7 {[%clk 0:00:23.2]} 55. Nd5 {[%clk 0:00:02.5]} 55... Qc2 {[%clk
0:00:20.7]} 56. Be5 {[%clk 0:00:01.9]} 56... Be4 {[%clk 0:00:17.8]} 57. Nf6+
{[%clk 0:00:01.8]} 57... Ke7 {[%clk 0:00:15.6]} 58. Nxe4 {[%clk 0:00:02.5]}
58... fxe4 {[%clk 0:00:15.2]} 59. f5 {[%clk 0:00:03.1]} 59... e3 {[%clk
0:00:04.7]} 60. Rb7+ {[%clk 0:00:02.9]} 60... Kd8 {[%clk 0:00:03.3]} 61. f6
{[%clk 0:00:02.9]} 61... Qe4 {[%clk 0:00:03.4]} 62. Bc7+ {[%clk 0:00:01.3]}
62... Kc8 {[%clk 0:00:03.5]} 63. Rb8+ {[%clk 0:00:01]} 63... Kxc7 {[%clk
0:00:03.5]} 64. f7 {[%clk 0:00:01.9]} 64... Qe5+ {[%clk 0:00:03.8]} 65. Kh1
{[%clk 0:00:01.8]} 65... Kxb8 {[%clk 0:00:03.5]} 66. f8=Q+ {[%clk 0:00:02.1]}
66... Kc7 {[%clk 0:00:03.9]} 67. Qf7+ {[%clk 0:00:02.6]} 67... Kd6 {[%clk
0:00:03.5]} 68. Qg6+ {[%clk 0:00:02.6]} 68... Kd5 {[%clk 0:00:03.7]} 69. Qf7+
{[%clk 0:00:02.3]} 69... Ke4 {[%clk 0:00:04.1]} 70. Qxc4+ {[%clk 0:00:02.4]}
70... Kf5 {[%clk 0:00:04.5]} 71. Qd3+ {[%clk 0:00:02.7]} 71... Kf4 {[%clk
0:00:04.4]} 72. Qf1+ {[%clk 0:00:03.1]} 72... Kg5 {[%clk 0:00:03.5]} 73. Qe2
{[%clk 0:00:01.4]} 73... Qxc3 {[%clk 0:00:03.8]} 74. Qg4+ {[%clk 0:00:02]} 74...
Kf6 {[%clk 0:00:03.7]} 75. Qxh4+ {[%clk 0:00:02.6]} 75... Ke6 {[%clk 0:00:03.5]}
76. Qe4+ {[%clk 0:00:02.5]} 76... Kd6 {[%clk 0:00:03.4]} 77. Qxa4 {[%clk
0:00:02.6]} 77... Qe1+ {[%clk 0:00:02.2]} 78. Kh2 {[%clk 0:00:03.3]} 78... e2
{[%clk 0:00:03]} 79. Qd4+ {[%clk 0:00:03.8]} 79... Ke6 {[%clk 0:00:03.2]} 80.
Qe4+ {[%clk 0:00:04]} 80... Kd6 {[%clk 0:00:03.8]} 81. Qd4+ {[%clk 0:00:04.3]}
81... Ke6 {[%clk 0:00:04.4]} 82. Qe4+ {[%clk 0:00:04.7]} 82... Kd6 {[%clk
0:00:05]} 83. Qd4+ {[%clk 0:00:05.2]} 1/2-1/2

[Event "*** Titled Tuesday Blitz"]
[Site "Chess.com"]
[Date "2021.04.27"]
[Round "10"]
[White "Gerodot71"]
[Black "Valeron87"]
[Result "1/2-1/2"]
[WhiteElo "2563"]
[BlackElo "2431"]
[TimeControl "180+1"]
[EndTime "11:56:13 PDT"]
[Termination "Game drawn - insufficient material"]

1. d4 {[%clk 0:03:00.9]} 1... d5 {[%clk 0:02:57.3]} 2. c4 {[%clk 0:03:00.7]}
2... e6 {[%clk 0:02:54.9]} 3. Nf3 {[%clk 0:03:00.4]} 3... c6 {[%clk 0:02:54.4]}
4. Nbd2 {[%clk 0:02:59.7]} 4... f5 {[%clk 0:02:53.2]} 5. g3 {[%clk 0:02:58.2]}
5... Nf6 {[%clk 0:02:52.3]} 6. Bg2 {[%clk 0:02:57.8]} 6... Bd6 {[%clk
0:02:52.7]} 7. O-O {[%clk 0:02:57.6]} 7... Nbd7 {[%clk 0:02:50.2]} 8. e3 {[%clk
0:02:53.4]} 8... O-O {[%clk 0:02:49.1]} 9. Ne1 {[%clk 0:02:53.4]} 9... b6 {[%clk
0:02:46.2]} 10. Nd3 {[%clk 0:02:48.8]} 10... Bb7 {[%clk 0:02:39.3]} 11. b3
{[%clk 0:02:45.1]} 11... Qe7 {[%clk 0:02:29.7]} 12. Bb2 {[%clk 0:02:44.7]} 12...
c5 {[%clk 0:02:20.8]} 13. cxd5 {[%clk 0:02:38.5]} 13... Bxd5 {[%clk 0:02:19.7]}
14. Bxd5 {[%clk 0:02:32.1]} 14... Nxd5 {[%clk 0:02:11]} 15. Qf3 {[%clk
0:02:31.8]} 15... cxd4 {[%clk 0:02:08.5]} 16. Bxd4 {[%clk 0:02:29.1]} 16... Nb4
{[%clk 0:01:54.1]} 17. Nxb4 {[%clk 0:02:18]} 17... Bxb4 {[%clk 0:01:55]} 18. Nc4
{[%clk 0:02:18.4]} 18... Bc5 {[%clk 0:01:29.2]} 19. Rfd1 {[%clk 0:02:14]} 19...
Rad8 {[%clk 0:01:20.4]} 20. Qb7 {[%clk 0:02:02.3]} 20... Nb8 {[%clk 0:00:48.7]}
21. Qxe7 {[%clk 0:01:55.3]} 21... Bxe7 {[%clk 0:00:49.6]} 22. Ne5 {[%clk
0:01:55.1]} 22... Rc8 {[%clk 0:00:41.2]} 23. Rac1 {[%clk 0:01:51.2]} 23... Ba3
{[%clk 0:00:41.1]} 24. Rc4 {[%clk 0:01:32.3]} 24... Bd6 {[%clk 0:00:33.3]} 25.
Kg2 {[%clk 0:01:23.6]} 25... Bxe5 {[%clk 0:00:30.6]} 26. Bxe5 {[%clk 0:01:23.1]}
26... Rxc4 {[%clk 0:00:31.1]} 27. bxc4 {[%clk 0:01:24]} 27... Nc6 {[%clk
0:00:30]} 28. Bc3 {[%clk 0:01:24]} 28... Rd8 {[%clk 0:00:29.3]} 29. Rxd8+ {[%clk
0:01:15]} 29... Nxd8 {[%clk 0:00:30.2]} 30. Kf3 {[%clk 0:01:15]} 30... Nc6
{[%clk 0:00:30.2]} 31. e4 {[%clk 0:01:11]} 31... Kf7 {[%clk 0:00:29.6]} 32. Ke3
{[%clk 0:01:11.2]} 32... g6 {[%clk 0:00:29]} 33. f3 {[%clk 0:01:07.8]} 33... Ke7
{[%clk 0:00:28.9]} 34. g4 {[%clk 0:01:07.4]} 34... fxg4 {[%clk 0:00:26.9]} 35.
fxg4 {[%clk 0:01:08.3]} 35... e5 {[%clk 0:00:27.3]} 36. Kd3 {[%clk 0:01:01.8]}
36... Kd6 {[%clk 0:00:27.5]} 37. a3 {[%clk 0:00:56.9]} 37... Kc5 {[%clk
0:00:26.8]} 38. Bd2 {[%clk 0:00:52.4]} 38... Kd6 {[%clk 0:00:10.4]} 39. Be3
{[%clk 0:00:50.4]} 39... Na5 {[%clk 0:00:10]} 40. Kc3 {[%clk 0:00:48.8]} 40...
Nc6 {[%clk 0:00:09.7]} 41. Kd3 {[%clk 0:00:44]} 41... Nd8 {[%clk 0:00:09.5]} 42.
Bd2 {[%clk 0:00:28.9]} 42... Ne6 {[%clk 0:00:09]} 43. Bb4+ {[%clk 0:00:29.5]}
43... Kc6 {[%clk 0:00:08.4]} 44. Bc3 {[%clk 0:00:29.2]} 44... Kd6 {[%clk
0:00:06.8]} 45. Bb4+ {[%clk 0:00:29.1]} 45... Kc6 {[%clk 0:00:07]} 46. Ke3
{[%clk 0:00:28.7]} 46... a5 {[%clk 0:00:03.5]} 47. Be7 {[%clk 0:00:26.8]} 47...
Kd7 {[%clk 0:00:03.2]} 48. Bf6 {[%clk 0:00:24.8]} 48... Kd6 {[%clk 0:00:03.4]}
49. Kd3 {[%clk 0:00:23.8]} 49... Nd4 {[%clk 0:00:03.4]} 50. Bg7 {[%clk
0:00:21.3]} 50... Nf3 {[%clk 0:00:03.1]} 51. h3 {[%clk 0:00:17.2]} 51... Ng5
{[%clk 0:00:03.2]} 52. h4 {[%clk 0:00:17]} 52... Ne6 {[%clk 0:00:02.2]} 53. Bf6
{[%clk 0:00:14.7]} 53... Nc5+ {[%clk 0:00:02.4]} 54. Ke3 {[%clk 0:00:14.2]}
54... Nd7 {[%clk 0:00:01.1]} 55. Bg7 {[%clk 0:00:14.4]} 55... Kc5 {[%clk
0:00:01.4]} 56. Kd3 {[%clk 0:00:14.4]} 56... Kc6 {[%clk 0:00:01.7]} 57. h5
{[%clk 0:00:14.6]} 57... Kc5 {[%clk 0:00:01.8]} 58. h6 {[%clk 0:00:13.3]} 58...
Kc6 {[%clk 0:00:02.1]} 59. g5 {[%clk 0:00:12.8]} 59... Kc5 {[%clk 0:00:02.4]}
60. Bh8 {[%clk 0:00:13.2]} 60... Kc6 {[%clk 0:00:02.7]} 61. Bg7 {[%clk
0:00:13.2]} 61... Kc5 {[%clk 0:00:03]} 62. Bf6 {[%clk 0:00:13.7]} 62... Kc6
{[%clk 0:00:03.3]} 63. Be7 {[%clk 0:00:14]} 63... Kc7 {[%clk 0:00:03.2]} 64. Kc3
{[%clk 0:00:12.5]} 64... Kc6 {[%clk 0:00:03.4]} 65. Kb3 {[%clk 0:00:12.8]} 65...
b5 {[%clk 0:00:03.4]} 66. cxb5+ {[%clk 0:00:12.7]} 66... Kxb5 {[%clk 0:00:04.3]}
67. a4+ {[%clk 0:00:13.4]} 67... Kc6 {[%clk 0:00:04.2]} 68. Kc4 {[%clk
0:00:13.2]} 68... Nb6+ {[%clk 0:00:04.8]} 69. Kb3 {[%clk 0:00:13.7]} 69... Kd7
{[%clk 0:00:04.5]} 70. Bc5 {[%clk 0:00:13.4]} 70... Kc6 {[%clk 0:00:04.3]} 71.
Be3 {[%clk 0:00:09.3]} 71... Nd7 {[%clk 0:00:04.2]} 72. Kc4 {[%clk 0:00:08.9]}
72... Nf8 {[%clk 0:00:04.3]} 73. Bd2 {[%clk 0:00:08.4]} 73... Ne6 {[%clk
0:00:04.5]} 74. Bxa5 {[%clk 0:00:08.5]} 74... Nxg5 {[%clk 0:00:04.6]} 75. Kd3
{[%clk 0:00:08.9]} 75... Nf7 {[%clk 0:00:04.4]} 76. Bd2 {[%clk 0:00:08.5]} 76...
g5 {[%clk 0:00:04.2]} 77. Kc4 {[%clk 0:00:07.3]} 77... g4 {[%clk 0:00:04.4]} 78.
Be3 {[%clk 0:00:07.4]} 78... g3 {[%clk 0:00:04.5]} 79. Kd3 {[%clk 0:00:07.9]}
79... g2 {[%clk 0:00:04.5]} 80. Ke2 {[%clk 0:00:08.4]} 80... Nxh6 {[%clk
0:00:04.8]} 81. Kf3 {[%clk 0:00:07.8]} 81... Nf7 {[%clk 0:00:02.8]} 82. Kxg2
{[%clk 0:00:07.8]} 82... Nd6 {[%clk 0:00:03.3]} 83. Kf3 {[%clk 0:00:07.5]} 83...
Nc4 {[%clk 0:00:03.7]} 84. Bf2 {[%clk 0:00:07.2]} 84... Nb2 {[%clk 0:00:03.6]}
85. a5 {[%clk 0:00:06.8]} 85... Kb5 {[%clk 0:00:04.1]} 86. Be1 {[%clk
0:00:05.2]} 86... Nc4 {[%clk 0:00:04.4]} 87. Kg4 {[%clk 0:00:04.6]} 87... Nd6
{[%clk 0:00:04.2]} 88. Kf3 {[%clk 0:00:04.2]} 88... h5 {[%clk 0:00:04.3]} 89.
Bg3 {[%clk 0:00:03.3]} 89... Kxa5 {[%clk 0:00:02.7]} 90. Bxe5 {[%clk 0:00:03.4]}
90... Nxe4 {[%clk 0:00:03.1]} 91. Kxe4 {[%clk 0:00:04.3]} 91... Kb5 {[%clk
0:00:02.8]} 92. Bh2 {[%clk 0:00:03.8]} 92... h4 {[%clk 0:00:03.3]} 93. Kf4
{[%clk 0:00:04.7]} 93... h3 {[%clk 0:00:04.2]} 94. Kg4 {[%clk 0:00:05.6]} 94...
Kc6 {[%clk 0:00:04.9]} 95. Kxh3 {[%clk 0:00:06.5]} 1/2-1/2